[Event "WGM Marmaris Cleopatra 2018"]
[Site "Mentese Mugla"]
[Date "2018.10.26"]
[Round "2.6"]
[White "Tsatsalashvili, Keti"]
[Black "Ince, Safiye Oyku"]
[Result "1-0"]
[ECO "E17"]
[WhiteElo "2330"]
[BlackElo "1855"]
[Annotator "NA"]
[PlyCount "99"]
[EventDate "2018.10.26"]
[EventType "tourn"]
[EventCountry "TUR"]
[SourceTitle "playchess.com"]
[Source "ChessBase"]
[SourceQuality "1"]
[TimeControl "5400+30"]

1. Nf3 {[%emt 0:00:30]} Nf6 {[%emt 0:09:30]} 2. d4 {[%emt 0:00:30]} e6 {[%emt 0:00:30]} 3. c4 {[%emt 0:00:00]} b6 {[%emt 0:00:30]} 4. g3 {[%emt 0:00:00]} Bb7 {[%emt 0:00:30]} 5. Bg2 {[%emt 0:00:30]} Be7 {[%emt 0:00:00]} 6. O-O {[%emt 0:00:30]} O-O {[%emt 0:00:00]} 7. Nc3 {[%emt 0:00:00]} d6 {[%emt 0:04:30]} 8. Re1 {[%emt 0:01:00]} Nbd7 {[%emt 0:01:30]} 9. e4 {[%emt 0:00:30]} e5 {[%emt 0:00:30]} 10. d5 {[%emt 0:00:30]} a5 {[%emt 0:00:30]} 11. a3 {[%emt 0:00:30]} Nc5 {[%emt 0:01:30]} 12. b3 {[%emt 0:01:30]} Bc8 {[%emt 0:06:30]} 13. Qc2 {[%emt 0:04:30]} Bd7 {[%emt 0:04:30]} 14. Nd2 {[%emt 0:01:30]} Nh5 {[%emt 0:05:30]} 15. Bb2 {[%emt 0:03:30]} Bg5 {[%emt 0:04:30]} 16. Nf3 {[%emt 0:04:30]} a4 {[%emt 0:08:30]} 17. b4 {[%emt 0:06:30]} Nb3 {[%emt 0:00:30]} 18. Rad1 {[%emt 0:00:30]} Be7 {[%emt 0:06:30]} 19. Qe2 {[%emt 0:03:30]} g6 {[%emt 0:00:30]} 20. Nb1 {[%emt 0:04:30]} Qc8 {[%emt 0:10:30]} 21. Nbd2 {[%emt 0:03:30]} Nxd2 {[%emt 0:00:30]} 22. Nxd2 {[%emt 0:01:30]} Bh3 {[%emt 0:02:30]} 23. Bxh3 {[%emt 0:07:30]} Qxh3 {[%emt 0:00:00]} 24. f3 {[%emt 0:00:00]} Bg5 {[%emt 0:03:00]} 25. Nb1 {[%emt 0:01:00]} f5 {[%emt 0:00:30]} 26. Qg2 {[%emt 0:00:30]} Qxg2+ {[%emt 0:00:30]} 27. Kxg2 {[%emt 0:14:30]} fxe4 {[%emt 0:20:44]} 28. Rxe4 {[%emt 0:00:00]} Ng7 {[%emt 0:00:41]} 29. h4 {[%emt 0:00:00]} Bf6 {[%emt 0:00:38]} 30. Nc3 {[%emt 0:00:30]} Nf5 {[%emt 0:00:37]} 31. Nb5 {[%emt 0:00:30]} Rf7 {[%emt 0:00:38]} 32. Bc3 {[%emt 0:00:30]} Bg7 {[%emt 0:00:39]} 33. Be1 {[%emt 0:00:30]} Bf6 {[%emt 0:00:38]} 34. Bf2 {[%emt 0:00:30]} Kg7 {[%emt 0:00:38]} 35. Rh1 {[%emt 0:00:30]} Raf8 {[%emt 0:00:40]} 36. g4 {[%emt 0:00:30]} Nd4 {[%emt 0:00:39]} 37. g5 {[%emt 0:00:30]} Nxf3 {[%emt 0:01:01]} 38. gxf6+ {[%emt 0:01:30]} Kxf6 {[%emt 0:00:56]} 39. Re2 {[%emt 0:02:30]} Kg7 {[%emt 0:01:34]} 40. Bg3 {[%emt 0:00:30]} g5 {[%emt 0:00:47]} 41. hxg5 {[%emt 0:01:30]} Nxg5 {[%emt 0:00:07]} 42. c5 {[%emt 0:02:30]} bxc5 {[%emt 0:00:53]} 43. bxc5 {[%emt 0:00:00]} Rb8 {[%emt 0:00:04]} 44. cxd6 {[%emt 0:02:00]} Rxb5 {[%emt 0:00:06]} 45. dxc7 {[%emt 0:00:30]} Rf8 {[%emt 0:00:36]} 46. Bxe5+ {[%emt 0:00:30]} Kg6 {[%emt 0:00:08]} 47. d6 {[%emt 0:01:30]} Ne6 {[%emt 0:01:32]} 48. Rc1 {[%emt 0:00:30]} Nc5 {[%emt 0:01:37]} 49. Rxc5 {[%emt 0:00:30]} Rxc5 {[%emt 0:00:10]} 50. d7 {[%emt 0:00:30]} 1-0

[Event "WGM Marmaris Cleopatra 2018"]
[Site "Mentese Mugla"]
[Date "2018.10.26"]
[Round "2.7"]
[White "Tereladze, Sopiko"]
[Black "Soyunlu, Narmin"]
[Result "1/2-1/2"]
[ECO "C29"]
[WhiteElo "2161"]
[BlackElo "2014"]
[Annotator "NA"]
[PlyCount "60"]
[EventDate "2018.10.26"]
[EventType "tourn"]
[EventCountry "TUR"]
[SourceTitle "playchess.com"]
[Source "ChessBase"]
[SourceQuality "1"]
[TimeControl "5400+30"]

1. e4 {[%emt 0:01:30]} e5 {[%emt 0:03:30]} 2. Nc3 {[%emt 0:01:30]} Nf6 {[%emt 0:00:30]} 3. f4 {[%emt 0:01:30]} d5 {[%emt 0:00:30]} 4. fxe5 {[%emt 0:00:30]} Nxe4 {[%emt 0:03:30]} 5. Nf3 {[%emt 0:01:30]} Bg4 {[%emt 0:07:30]} 6. d3 {[%emt 0:02:30]} Nc5 {[%emt 0:10:30]} 7. Be2 {[%emt 0:01:30]} Ne6 {[%emt 0:03:30]} 8. O-O {[%emt 0:03:30]} c6 {[%emt 0:15:30]} 9. d4 {[%emt 0:21:30]} Be7 {[%emt 0:13:30]} 10. Be3 {[%emt 0:03:30]} Nd7 {[%emt 0:01:30]} 11. Nd2 {[%emt 0:00:30]} Bxe2 {[%emt 0:02:30]} 12. Qxe2 {[%emt 0:00:00]} Nxe5 {[%emt 0:07:30]} 13. dxe5 {[%emt 0:08:00]} d4 {[%emt 0:00:30]} 14. Nde4 {[%emt 0:01:30]} dxe3 {[%emt 0:03:30]} 15. Qxe3 {[%emt 0:01:30]} Qb6 {[%emt 0:06:59]} 16. Qxb6 {[%emt 0:00:30]} axb6 {[%emt 0:00:05]} 17. Rad1 {[%emt 0:00:00]} Rd8 {[%emt 0:05:22]} 18. Rxd8+ {[%emt 0:02:00]} Nxd8 {[%emt 0:00:06]} 19. Rd1 {[%emt 0:02:30]} Ne6 {[%emt 0:04:02]} 20. Na4 {[%emt 0:04:30]} Nc5 {[%emt 0:02:55]} 21. Naxc5 {[%emt 0:09:30]} Bxc5+ {[%emt 0:00:07]} 22. Nxc5 {[%emt 0:00:30]} bxc5 {[%emt 0:00:01]} 23. Kf2 {[%emt 0:00:30]} Ke7 {[%emt 0:00:08]} 24. Kf3 {[%emt 0:00:30]} Ra8 {[%emt 0:00:14]} 25. a3 {[%emt 0:00:30]} Ra4 {[%emt 0:01:00]} 26. c3 {[%emt 0:04:30]} Rh4 {[%emt 0:01:27]} 27. h3 {[%emt 0:00:30]} Rh5 {[%emt 0:01:06]} 28. Kf4 {[%emt 0:00:30]} Rh4+ {[%emt 0:00:12]} 29. Kf3 {[%emt 0:00:30]} Rh5 {[%emt 0:01:43]} 30. Kf4 {[%emt 0:00:30]} Rh4+ {[%emt 0:01:18]} 1/2-1/2

[Event "WGM Marmaris Cleopatra 2018"]
[Site "Mentese Mugla"]
[Date "2018.10.26"]
[Round "2.8"]
[White "Abdulla, Khayala"]
[Black "Arda, Cagýl Irmak"]
[Result "1-0"]
[ECO "B88"]
[WhiteElo "2168"]
[BlackElo "2096"]
[Annotator "NA"]
[PlyCount "111"]
[EventDate "2018.10.26"]
[EventType "tourn"]
[EventCountry "TUR"]
[SourceTitle "playchess.com"]
[Source "ChessBase"]
[SourceQuality "1"]
[TimeControl "5400+30"]

1. e4 {[%emt 0:04:30]} c5 {[%emt 0:00:30]} 2. Nf3 {[%emt 0:01:30]} Nc6 {[%emt 0:00:00]} 3. d4 {[%emt 0:01:30]} cxd4 {[%emt 0:00:00]} 4. Nxd4 {[%emt 0:00:00]} Nf6 {[%emt 0:00:30]} 5. Nc3 {[%emt 0:00:00]} d6 {[%emt 0:00:00]} 6. Bc4 {[%emt 0:01:30]} e6 {[%emt 0:00:00]} 7. Bb3 {[%emt 0:02:30]} Be7 {[%emt 0:00:30]} 8. Be3 {[%emt 0:00:30]} a6 {[%emt 0:00:30]} 9. f4 {[%emt 0:00:30]} Qc7 {[%emt 0:07:30]} 10. Qf3 {[%emt 0:01:30]} Bd7 {[%emt 0:01:30]} 11. O-O-O {[%emt 0:02:30]} Rc8 {[%emt 0:01:30]} 12. g4 {[%emt 0:03:30]} Nxd4 {[%emt 0:01:30]} 13. Rxd4 {[%emt 0:00:30]} Bc6 {[%emt 0:00:30]} 14. g5 {[%emt 0:00:30]} Nd7 {[%emt 0:00:30]} 15. Qh3 {[%emt 0:03:30]} Nc5 {[%emt 0:07:30]} 16. Rf1 {[%emt 0:10:30]} Nxb3+ {[%emt 0:03:30]} 17. axb3 {[%emt 0:01:30]} b5 {[%emt 0:02:30]} 18. f5 {[%emt 0:07:30]} e5 {[%emt 0:03:30]} 19. Rd2 {[%emt 0:00:30]} b4 {[%emt 0:08:30]} 20. Nd5 {[%emt 0:01:30]} Bxd5 {[%emt 0:00:30]} 21. exd5 {[%emt 0:00:00]} Qd7 {[%emt 0:00:30]} 22. Qh5 {[%emt 0:03:00]} a5 {[%emt 0:10:30]} 23. g6 {[%emt 0:08:30]} Bf6 {[%emt 0:01:30]} 24. Bg5 {[%emt 0:08:30]} Bxg5 {[%emt 0:04:30]} 25. gxf7+ {[%emt 0:00:30]} Qxf7 {[%emt 0:00:30]} 26. Qxg5 {[%emt 0:00:00]} Qf6 {[%emt 0:02:30]} 27. Qh5+ {[%emt 0:01:00]} Qf7 {[%emt 0:02:30]} 28. Qg4 {[%emt 0:03:30]} Qf6 {[%emt 0:07:30]} 29. h4 {[%emt 0:00:30]} Rc5 {[%emt 0:04:30]} 30. h5 {[%emt 0:02:30]} Rf8 {[%emt 0:00:30]} 31. Kb1 {[%emt 0:05:30]} Rf7 {[%emt 0:00:30]} 32. Rh2 {[%emt 0:06:30]} Rxd5 {[%emt 0:09:30]} 33. h6 {[%emt 0:00:30]} Rd4 {[%emt 0:00:41]} 34. Qe2 {[%emt 0:00:40]} g6 {[%emt 0:03:30]} 35. Qb5+ {[%emt 0:01:10]} Ke7 {[%emt 0:00:32]} 36. Qb7+ {[%emt 0:00:29]} Ke8 {[%emt 0:00:39]} 37. Qc6+ {[%emt 0:01:50]} Ke7 {[%emt 0:03:55]} 38. Rhf2 {[%emt 0:01:52]} g5 {[%emt 0:04:27]} 39. Rg2 {[%emt 0:02:56]} Qxh6 {[%emt 0:03:08]} 40. Qc7+ {[%emt 0:01:50]} Ke8 {[%emt 0:00:16]} 41. Qc8+ {[%emt 0:00:27]} Ke7 {[%emt 0:00:07]} 42. Rfg1 {[%emt 0:00:57]} Rg7 {[%emt 0:03:27]} 43. c3 {[%emt 0:03:03]} Rf4 {[%emt 0:01:12]} 44. cxb4 {[%emt 0:01:44]} Qf6 {[%emt 0:01:27]} 45. Qc7+ {[%emt 0:02:48]} Ke8 {[%emt 0:00:23]} 46. Qc6+ {[%emt 0:00:35]} Ke7 {[%emt 0:00:35]} 47. bxa5 {[%emt 0:00:39]} Qxf5+ {[%emt 0:00:14]} 48. Ka2 {[%emt 0:00:07]} e4 {[%emt 0:01:44]} 49. Qc7+ {[%emt 0:00:15]} Qd7 {[%emt 0:00:51]} 50. Qc3 {[%emt 0:00:04]} Rgf7 {[%emt 0:00:50]} 51. Rxg5 {[%emt 0:00:23]} Rf3 {[%emt 0:00:25]} 52. Qb4 {[%emt 0:00:15]} e3 {[%emt 0:00:55]} 53. Re5+ {[%emt 0:01:39]} Kd8 {[%emt 0:00:17]} 54. Qb8+ {[%emt 0:00:27]} Qc8 {[%emt 0:00:06]} 55. Qxd6+ {[%emt 0:00:38]} Qd7 {[%emt 0:00:05]} 56. Qb8+ {[%emt 0:00:07]} 1-0

[Event "WGM Marmaris Cleopatra 2018"]
[Site "Mentese Mugla"]
[Date "2018.10.26"]
[Round "2.9"]
[White "Dimitrijevic, Aleksandra"]
[Black "Okuyaz, Duru"]
[Result "1-0"]
[ECO "D45"]
[WhiteElo "2189"]
[BlackElo "2108"]
[Annotator "NA"]
[PlyCount "71"]
[EventDate "2018.10.26"]
[EventType "tourn"]
[EventCountry "TUR"]
[SourceTitle "playchess.com"]
[Source "ChessBase"]
[SourceQuality "1"]
[TimeControl "5400+30"]

1. c4 {[%emt 0:00:30]} c6 {[%emt 0:00:30]} 2. Nc3 {[%emt 0:00:00]} d5 {[%emt 0:00:00]} 3. e3 {[%emt 0:00:00]} Nf6 {[%emt 0:00:00]} 4. Nf3 {[%emt 0:00:30]} e6 {[%emt 0:00:30]} 5. Qc2 {[%emt 0:00:30]} Nbd7 {[%emt 0:00:30]} 6. b3 {[%emt 0:01:30]} Bd6 {[%emt 0:00:30]} 7. Bb2 {[%emt 0:00:00]} O-O {[%emt 0:00:30]} 8. Be2 {[%emt 0:02:00]} a6 {[%emt 0:00:30]} 9. d4 {[%emt 0:02:30]} b5 {[%emt 0:01:30]} 10. a3 {[%emt 0:02:30]} Bb7 {[%emt 0:00:30]} 11. O-O {[%emt 0:04:30]} bxc4 {[%emt 0:09:30]} 12. bxc4 {[%emt 0:00:00]} dxc4 {[%emt 0:02:30]} 13. e4 {[%emt 0:03:00]} e5 {[%emt 0:01:30]} 14. Rad1 {[%emt 0:03:30]} Qc7 {[%emt 0:06:30]} 15. h3 {[%emt 0:05:30]} Rfe8 {[%emt 0:03:30]} 16. Bxc4 {[%emt 0:03:30]} exd4 {[%emt 0:03:30]} 17. Nxd4 {[%emt 0:00:00]} Be5 {[%emt 0:06:30]} 18. Nf5 {[%emt 0:08:00]} Nc5 {[%emt 0:03:30]} 19. Rfe1 {[%emt 0:02:30]} Rad8 {[%emt 0:03:30]} 20. Rxd8 {[%emt 0:03:30]} Rxd8 {[%emt 0:00:00]} 21. Rd1 {[%emt 0:17:30]} Bc8 {[%emt 0:03:00]} 22. Re1 {[%emt 0:18:30]} Bxc3 {[%emt 0:09:30]} 23. Qxc3 {[%emt 0:03:53]} Na4 {[%emt 0:00:30]} 24. Nh6+ {[%emt 0:00:19]} gxh6 {[%emt 0:03:30]} 25. Qxf6 {[%emt 0:00:08]} Nxb2 {[%emt 0:00:00]} 26. Bxf7+ {[%emt 0:00:12]} Qxf7 {[%emt 0:00:00]} 27. Qxd8+ {[%emt 0:00:03]} Qf8 {[%emt 0:00:30]} 28. Qxf8+ {[%emt 0:00:15]} Kxf8 {[%emt 0:00:30]} 29. Rb1 {[%emt 0:00:04]} Ke7 {[%emt 0:03:30]} 30. Rxb2 {[%emt 0:00:06]} Kd6 {[%emt 0:00:30]} 31. f4 {[%emt 0:00:30]} Kc5 {[%emt 0:00:00]} 32. Kf2 {[%emt 0:00:50]} Kd4 {[%emt 0:00:00]} 33. Rb4+ {[%emt 0:01:30]} Kd3 {[%emt 0:00:30]} 34. f5 {[%emt 0:00:33]} a5 {[%emt 0:01:30]} 35. Rb8 {[%emt 0:00:20]} Ba6 {[%emt 0:00:00]} 36. e5 {[%emt 0:00:05]} 1-0

[Event "WGM Marmaris Cleopatra 2018"]
[Site "Mentese Mugla"]
[Date "2018.10.26"]
[Round "2.10"]
[White "Zozulia, Anna"]
[Black "Isgandarova, Khayala"]
[Result "1-0"]
[ECO "C07"]
[WhiteElo "2292"]
[BlackElo "2194"]
[Annotator "NA"]
[PlyCount "109"]
[EventDate "2018.10.26"]
[EventType "tourn"]
[EventCountry "TUR"]
[SourceTitle "playchess.com"]
[Source "ChessBase"]
[SourceQuality "1"]
[TimeControl "5400+30"]

1. e4 {[%emt 0:00:30]} e6 {[%emt 0:00:30]} 2. d4 {[%emt 0:00:00]} d5 {[%emt 0:00:00]} 3. Nd2 {[%emt 0:00:00]} c5 {[%emt 0:00:00]} 4. Ngf3 {[%emt 0:01:30]} Nf6 {[%emt 0:01:30]} 5. exd5 {[%emt 0:00:30]} Nxd5 {[%emt 0:02:30]} 6. Nb3 {[%emt 0:24:30]} Nd7 {[%emt 0:06:30]} 7. c4 {[%emt 0:03:30]} N5f6 {[%emt 0:01:30]} 8. dxc5 {[%emt 0:07:30]} Qc7 {[%emt 0:02:30]} 9. c6 {[%emt 0:04:30]} bxc6 {[%emt 0:03:30]} 10. Be2 {[%emt 0:01:30]} c5 {[%emt 0:00:30]} 11. O-O {[%emt 0:00:30]} Bb7 {[%emt 0:00:30]} 12. Bg5 {[%emt 0:06:30]} Bd6 {[%emt 0:01:30]} 13. Bh4 {[%emt 0:14:30]} Ne4 {[%emt 0:09:30]} 14. Nbd2 {[%emt 0:09:30]} f5 {[%emt 0:04:30]} 15. Nxe4 {[%emt 0:03:12]} Bxe4 {[%emt 0:00:30]} 16. h3 {[%emt 0:09:37]} h6 {[%emt 0:27:30]} 17. Nd2 {[%emt 0:00:49]} Bc6 {[%emt 0:06:30]} 18. Bh5+ {[%emt 0:02:51]} Kf8 {[%emt 0:00:00]} 19. Qe2 {[%emt 0:00:48]} Be5 {[%emt 0:05:00]} 20. f4 {[%emt 0:06:08]} g5 {[%emt 0:06:16]} 21. fxe5 {[%emt 0:01:15]} gxh4 {[%emt 0:00:06]} 22. Rae1 {[%emt 0:00:40]} Rg8 {[%emt 0:01:52]} 23. Bf3 {[%emt 0:00:05]} Rb8 {[%emt 0:11:53]} 24. b3 {[%emt 0:00:10]} Kg7 {[%emt 0:02:04]} 25. Bxc6 {[%emt 0:00:39]} Qxc6 {[%emt 0:00:03]} 26. Nf3 {[%emt 0:00:56]} Kh7 {[%emt 0:00:09]} 27. Rd1 {[%emt 0:00:25]} Nf8 {[%emt 0:00:40]} 28. Rd6 {[%emt 0:00:30]} Qe4 {[%emt 0:01:49]} 29. Qxe4 {[%emt 0:00:30]} fxe4 {[%emt 0:00:03]} 30. Nxh4 {[%emt 0:00:04]} Rg5 {[%emt 0:00:03]} 31. Re1 {[%emt 0:01:01]} Rxe5 {[%emt 0:01:30]} 32. Nf3 {[%emt 0:00:03]} Rf5 {[%emt 0:00:20]} 33. Rxe4 {[%emt 0:00:05]} Rb7 {[%emt 0:00:03]} 34. Re5 {[%emt 0:00:20]} Rxe5 {[%emt 0:01:08]} 35. Nxe5 {[%emt 0:00:04]} Rc7 {[%emt 0:03:07]} 36. Kf2 {[%emt 0:00:07]} Kg7 {[%emt 0:00:16]} 37. Rc6 {[%emt 0:01:20]} Rxc6 {[%emt 0:00:29]} 38. Nxc6 {[%emt 0:00:03]} a6 {[%emt 0:00:36]} 39. Nb8 {[%emt 0:00:04]} a5 {[%emt 0:00:46]} 40. Nc6 {[%emt 0:00:20]} Kf6 {[%emt 0:00:42]} 41. Nxa5 {[%emt 0:00:16]} Ke5 {[%emt 0:00:05]} 42. Ke3 {[%emt 0:01:48]} Ng6 {[%emt 0:01:30]} 43. Nb7 {[%emt 0:00:51]} Nf4 {[%emt 0:00:38]} 44. g3 {[%emt 0:00:50]} Nxh3 {[%emt 0:00:45]} 45. Nxc5 {[%emt 0:00:03]} Kd6 {[%emt 0:00:13]} 46. Ne4+ {[%emt 0:00:08]} Kc6 {[%emt 0:00:26]} 47. b4 {[%emt 0:00:08]} e5 {[%emt 0:00:27]} 48. a4 {[%emt 0:00:05]} Kb6 {[%emt 0:00:19]} 49. c5+ {[%emt 0:00:14]} Kc6 {[%emt 0:00:03]} 50. b5+ {[%emt 0:00:05]} Kc7 {[%emt 0:00:49]} 51. a5 {[%emt 0:00:09]} Kb7 {[%emt 0:00:15]} 52. a6+ {[%emt 0:00:53]} Ka7 {[%emt 0:00:07]} 53. c6 {[%emt 0:00:12]} Kb6 {[%emt 0:00:05]} 54. Nc3 {[%emt 0:00:28]} Ng5 {[%emt 0:00:14]} 55. Nd5+ {[%emt 0:00:04]} 1-0

[Event "WGM Marmaris Cleopatra 2018"]
[Site "Mentese Mugla"]
[Date "2018.10.27"]
[Round "3.8"]
[White "Arda, Cagil Irmak"]
[Black "Tereladze, Sopiko"]
[Result "0-1"]
[ECO "C46"]
[WhiteElo "2096"]
[BlackElo "2161"]
[Annotator "NA"]
[PlyCount "150"]
[EventDate "2018.10.26"]
[EventType "tourn"]
[EventCountry "TUR"]
[SourceTitle "playchess.com"]
[Source "ChessBase"]
[SourceQuality "1"]
[TimeControl "5400+30"]

{[%evp 8,140,60,52,52,59,70,54,52,47,56,20,32,-5,-5,-30,24,19,14,20,70,10,56,60,66,94,118,36,95,99,97,103,106,56,33,0,27,-16,92,0,53,79,27,0,14,0,353,405,528,599,920,993,871,32767,32767,32767,62,32767,32767,32767,32767,26,66,0,99,101,109,257,164,0,32767,32767,32767,32767,32767,32767,32767,32767,32767,-213,32767,32767,32767,32767,32767,32767,-104,-138,-146,-168,-65,-232,-249,-280,-219,-230,-256,-280,-227,-217,-131,-255,-238,-269,-296,-249,-245,-206,32767,32767,32767,32767,0,-160,-220,-193,-337,-461,-378,-426,-398,-495,-541,-548,-6,-767,-1066,-874,-1463,32767,32767,32767,32767,-1400,-1030]} 1. e4 {[%emt 0:00:30]} e5 {[%emt 0:02:30]} 2. Nf3 {[%emt 0:00:00]} Nc6 {[%emt 0:00:30]} 3. Nc3 {[%emt 0:00:00]} d6 {[%emt 0:00:30]} 4. d4 {[%emt 0:00:30]} Bg4 {[%emt 0:00:30]} 5. d5 {[%emt 0:02:30]} Nd4 {[%emt 0:04:30] C46: 3 Nc3: Unusual Black 3rd moves} (5... Nce7 6. Be3 g6 7. Qd3 a6 8. Nd2 Bg7 9. f3 Bc8 10. O-O-O f5 11. Nc4 Nf6 12. Be2 O-O 13. Kb1 {0-1 (29) Lugovskoy,M (2431)-Inarkiev,E (2660) St Petersburg 2015}) 6. Be3 {[%emt 0:01:30]} Nxf3+ {[%emt 0:00:30]} 7. gxf3 {[%emt 0:00:00]} Bd7 {[%emt 0:00:30] LiveBook: 6 Games} 8. h4 $146 {[%emt 0:02:00]} ({Predecessor:} 8. f4 exf4 9. Bxf4 Ne7 10. Qd2 Ng6 11. Bg3 h5 12. f4 Be7 13. Rg1 {1-0 (65) Diamant,A (2472)-Rodriguez Vila,A (2524) Buenos Aires 2009}) 8... h5 {[%emt 0:08:30]} 9. Qd2 {[%emt 0:09:30]} Be7 {[%emt 0:01:30]} 10. Bg5 {[%emt 0:00:30]} Bxg5 {[%emt 0:01:30]} 11. hxg5 {[%emt 0:00:30]} a6 {[%emt 0:01:30]} 12. f4 {[%emt 0:04:30]} exf4 $1 {[%emt 0:01:30]} 13. Qxf4 {[%emt 0:00:00]} Qe7 {[%emt 0:04:30]} 14. O-O-O {[%emt 0:01:00]} (14. Qe3 $16) 14... O-O-O {[%emt 0:00:30]} 15. Be2 {[%emt 0:03:30]} g6 {[%emt 0:04:30]} 16. Qe3 {[%emt 0:01:30]} Kb8 {[%emt 0:00:30]} 17. f4 {[%emt 0:00:00]} Qe8 {[%emt 0:03:30]} 18. Qd4 {[%emt 0:06:00]} Ne7 {[%emt 0:00:00]} 19. Qb4 {[%emt 0:00:30]} Ka7 {[%emt 0:08:00]} 20. Qa3 {[%emt 0:18:30]} Nc8 {[%emt 0:10:30]} 21. b4 {[%emt 0:04:30]} Kb8 {[%emt 0:04:30]} 22. Rd4 {[%emt 0:03:30]} Nb6 {[%emt 0:05:30] [#]} (22... Na7 $11) 23. Qa5 {[%emt 0:03:30]} (23. b5 $1 $16 {[%cal Rb5a6]} axb5 24. Rb4) 23... Na4 {[%emt 0:04:30]} 24. Nxa4 {[%emt 0:04:30]} Bxa4 {[%emt 0:00:30] [#]} 25. c4 {[%emt 0:02:30]} (25. Kd2 $1 $16) 25... Bd7 {[%emt 0:03:30]} 26. c5 {[%emt 0:04:30]} Bc8 $2 {[%emt 0:09:02]} (26... Bb5 $1 $11 {and Black is okay.} 27. Bxb5 Qxb5) 27. c6 {[%emt 0:03:30]} ({Not} 27. cxd6 Rxd6 28. b5 b6 $11) 27... bxc6 {[%emt 0:07:20]} 28. Bxa6 {[%emt 0:05:52]} Qd7 {[%emt 0:08:55]} 29. Bxc8 {[%emt 0:18:04]} Rxc8 {[%emt 0:00:09]} 30. Rc4 {[%emt 0:00:52]} cxd5 {[%emt 0:00:28]} 31. exd5 {[%emt 0:00:13]} Kb7 {[%emt 0:03:05]} 32. Rc6 {[%emt 0:00:21]} Ra8 {[%emt 0:00:05]} 33. Qb5+ {[%emt 0:00:05]} Kc8 {[%emt 0:00:01]} 34. Rh2 {[%emt 0:00:56]} (34. Kb2 $16) 34... Kd8 {[%emt 0:02:29]} 35. Rhc2 {[%emt 0:00:22]} Rc8 {[%emt 0:00:08]} (35... Re8 $11) 36. Qc4 {[%emt 0:00:43]} Re8 {[%emt 0:00:42] [#]} 37. b5 $1 {[%emt 0:00:24]} Qe7 {[%emt 0:00:38]} 38. a4 $2 {[%emt 0:00:58]} (38. Kb2 $16 Qe4 {[#]} 39. Rxd6+ $1 {[%mdl 512]} (39. Rxc7 Qxc2+ 40. Qxc2 Rxc7 $11) 39... cxd6 40. Qxc8+ Ke7 41. Qc7+ Kf8 42. Qc4 (42. Qxd6+ Kg8 $16)) 38... Qe1+ {[%emt 0:00:35]} 39. Kb2 {[%emt 0:00:03]} Re4 {[%emt 0:00:11]} 40. Qc3 {[%emt 0:00:29]} Qxc3+ {[%emt 0:00:16]} 41. R2xc3 {[%emt 0:00:14]} Rxa4 {[%emt 0:00:12]} 42. Kb3 {[%emt 0:00:08]} Ra7 {[%emt 0:00:14]} 43. R3c4 {[%emt 0:00:52]} (43. Ra6 $17 {might work better.} Rca8 44. Rcc6) 43... Rb8 {[%emt 0:00:23]} 44. Rb4 {[%emt 0:00:12]} Rab7 {[%emt 0:00:18]} 45. Kc4 {[%emt 0:00:06]} Kd7 {[%emt 0:00:14]} 46. Ra6 {[%emt 0:00:03]} Re8 {[%emt 0:01:05]} 47. Kd3 {[%emt 0:00:17]} h4 {[%emt 0:00:42]} 48. Ra2 {[%emt 0:00:51] [#]} Rh8 {[%emt 0:00:33]} (48... h3 $1 $19 49. Rb3 Rh8) 49. Kc4 {[%emt 0:00:35]} (49. Ke3 $17) 49... h3 {[%emt 0:00:54]} 50. Rh2 {[%emt 0:00:04]} Rh4 {[%emt 0:00:15]} 51. Kb3 {[%emt 0:00:36]} Rb8 {[%emt 0:00:09]} 52. Kb2 {[%emt 0:01:26]} Ke7 {[%emt 0:00:44]} 53. Kb3 {[%emt 0:01:02]} Kf8 {[%emt 0:01:23] [#]} 54. Ka4 {[%emt 0:00:10]} (54. f5 $142 $1 {[%mdl 512]} Rh7 (54... gxf5 55. Rxh4) 55. fxg6 fxg6 56. Kc2) 54... Kg7 {[%emt 0:00:17]} 55. Rc4 {[%emt 0:00:19]} Ra8+ {[%emt 0:00:25]} 56. Kb3 {[%emt 0:00:17]} Ra1 {[%emt 0:00:20]} 57. Rxc7 {[%emt 0:01:48]} Rb1+ {[%emt 0:00:15]} 58. Ka4 {[%emt 0:00:23]} Rxf4+ {[%emt 0:00:07]} 59. Ka5 {[%emt 0:00:04]} Rf3 {[%emt 0:01:26]} (59... Rb3 $17 60. b6 Rf5) 60. Rd7 $2 {[%emt 0:01:07] [#]} (60. Kb6 $11) 60... Rg1 $1 {[%emt 0:00:49]} 61. Rxd6 {[%emt 0:00:24]} Rxg5 {[%emt 0:00:31]} 62. Rd8 {[%emt 0:00:38]} Rg2 {[%emt 0:00:11]} 63. Rh1 {[%emt 0:00:03]} h2 {[%emt 0:00:36]} 64. d6 {[%emt 0:00:20]} Rd3 {[%emt 0:00:22]} 65. d7 {[%emt 0:00:20]} g5 $2 {[%emt 0:00:47]} ({Black should play} 65... Rb2 $19 66. Kb6 g5) 66. b6 $2 {[%emt 0:00:29]} (66. Kb4 $17) 66... Rb2 {[%emt 0:00:08]} 67. Ka6 {[%emt 0:00:16]} g4 {[%emt 0:00:20]} 68. Rc8 {[%emt 0:00:44]} Rxd7 {[%emt 0:00:14]} 69. Rc4 {[%emt 0:00:05]} f5 {[%emt 0:00:09]} 70. Rc3 {[%emt 0:00:42]} Rd6 $19 {[%emt 0:00:17]} 71. Ka7 {[%emt 0:00:14]} Rdxb6 {[%emt 0:00:16]} 72. Rxh2 {[%emt 0:00:09]} Rb7+ {[%emt 0:00:12]} 73. Ka6 {[%emt 0:00:08]} Rxh2 {[%emt 0:00:04]} 74. Kxb7 {[%emt 0:00:00]} Kf6 {[%emt 0:00:10]} 75. Kc6 {[%emt 0:00:06]} Rd2 {[%emt 0:00:04]} 0-1